bitfinex-derivatives/quotes_BTCF0:USTF0_20241005
["timestamp","ask_amount","ask_price","bid_price","bid_amount"]
[1728099411562,0.09,61948.0,61943.0,0.09]
[1728099411759,0.09,61948.0,61938.0,0.14583646]
[1728099411760,0.09,61948.0,61947.0,0.056497]
[1728099412176,0.09,61948.0,61947.0,0.17951564]
[1728099413168,0.093,61948.0,61947.0,0.17951564]
[1728099415084,0.094,61948.0,61947.0,0.17951564]
[1728099415280,0.094,61948.0,61947.0,0.26002452]
[1728099415994,0.094,61948.0,61947.0,0.28977755]
[1728099416194,0.094,61948.0,61947.0,0.16675891]
[1728099417283,0.094,61948.0,61947.0,0.08625003]
[1728099425899,0.056498,61946.0,61943.0,0.04828087]
[1728099426189,0.056498,61946.0,61942.0,0.36172]
[1728099426190,0.09,61945.0,61944.0,0.056499]
[1728099426687,0.056498,61946.0,61944.0,0.056499]
[1728099426887,0.056498,61946.0,61943.0,0.04828087]
[1728099426888,0.056498,61946.0,61945.0,0.056498]
[1728099427101,0.146498,61946.0,61945.0,0.056498]
[1728099428400,0.147498,61946.0,61945.0,0.056498]
[1728099429309,0.147498,61946.0,61945.0,0.058498]
[1728099432203,0.091,61946.0,61945.0,0.058498]
[1728099437511,0.001,61946.0,61945.0,0.058498]
[1728099437808,0.091,61946.0,61945.0,0.058498]
[1728099442413,0.1405507,61946.0,61945.0,0.058498]
[1728099445200,0.14055069,61946.0,61945.0,0.058498]
[1728099446507,0.05055069,61946.0,61945.0,0.058498]
[1728099449206,0.001,61946.0,61945.0,0.058498]
[1728099451518,0.091,61946.0,61945.0,0.058498]
[1728099457218,0.14055175,61946.0,61945.0,0.058498]
[1728099458218,0.05055175,61946.0,61945.0,0.058498]
[1728099460627,0.05055175,61946.0,61945.0,0.148498]
[1728099461124,0.05055175,61946.0,61945.0,0.509298]
[1728099461613,0.17859157,61946.0,61945.0,0.509298]
[1728099462418,0.22814332,61946.0,61945.0,0.509298]
[1728099463626,0.05055175,61946.0,61945.0,0.509298]
[1728099463826,0.22814332,61946.0,61945.0,0.509298]
[1728099464526,0.001,61946.0,61945.0,0.509298]
[1728099465019,0.0038,61952.0,61951.0,0.056493]
[1728099465218,0.3608,61975.0,61958.0,0.056487]
[1728099465219,0.0038,61959.0,61958.0,0.056487]
[1728099465532,0.3646,61968.0,61962.0,0.056483]
[1728099465727,0.0075,61967.0,61962.0,0.4508]
[1728099465915,0.0075,61967.0,61966.0,0.146479]
[1728099466123,0.0075,61967.0,61966.0,0.056479]
[1728099466316,0.0075,61967.0,61966.0,0.146479]
[1728099466918,0.0075,61967.0,61966.0,0.630599]
[1728099467135,0.0038,61977.0,61976.0,0.05647]
[1728099467429,0.38910527,61984.0,61981.0,0.056465]
[1728099467636,0.38910527,61984.0,61981.0,0.146465]
[1728099469033,0.40310527,61984.0,61981.0,0.146465]
[1728099469540,0.40210527,61984.0,61982.0,0.056464]
[1728099469830,0.41610527,61984.0,61982.0,0.056464]
[1728099470421,0.41510527,61984.0,61982.0,0.056464]
[1728099471724,0.41410527,61984.0,61982.0,0.056464]
[1728099471922,0.40210527,61984.0,61982.0,0.056464]
[1728099472127,0.41510527,61984.0,61982.0,0.056464]
[1728099472326,0.14689701,61983.0,61982.0,0.056464]
[1728099473622,0.15989701,61983.0,61982.0,0.056464]
[1728099474829,0.17389701,61983.0,61982.0,0.056464]
[1728099475924,0.17389701,61983.0,61980.0,0.3608]
[1728099476131,0.146466,61981.0,61980.0,0.3608]
[1728099476432,0.23549701,61981.0,61980.0,0.3608]
[1728099478728,0.24749701,61981.0,61980.0,0.3608]
[1728099479131,0.25749701,61981.0,61980.0,0.3608]
[1728099479532,0.168466,61981.0,61980.0,0.3608]
[1728099480931,0.168466,61981.0,61978.0,0.3608]
[1728099480932,0.056467,61980.0,61978.0,0.3608]
[1728099481133,0.09,61979.0,61978.0,0.3608]
[1728099481633,0.056468,61978.0,61972.0,0.0038]
[1728099481843,0.09,61974.0,61973.0,0.056473]
[1728099483545,0.09,61974.0,61969.0,0.0038]
[1728099483731,0.09,61974.0,61968.0,0.056477]
[1728099483732,0.09,61971.0,61968.0,0.056477]
[1728099484436,0.056476,61970.0,61966.0,0.0113]
[1728099484635,0.09,61967.0,61965.0,0.05648]
[1728099485434,0.09,61967.0,61966.0,0.003]
[1728099485935,0.091,61967.0,61966.0,0.003]
[1728099486840,0.091,61967.0,61966.0,0.059479]
[1728099487242,0.091,61967.0,61966.0,0.056479]
[1728099487643,0.091,61967.0,61966.0,0.059479]
[1728099487840,0.056482,61963.0,61962.0,0.0113]
[1728099488035,0.056482,61963.0,61947.0,0.3739]
[1728099488036,0.09,61963.0,61957.0,0.056487]
[1728099488234,0.09,61958.0,61957.0,0.056487]
[1728099489244,0.09,61958.0,61957.0,0.059487]
[1728099489430,0.09,61958.0,61957.0,0.003]
[1728099489634,0.146487,61958.0,61957.0,0.003]
[1728099490835,0.146487,61958.0,61956.0,0.3608]
[1728099491045,0.149487,61958.0,61956.0,0.3608]
[1728099491242,0.154487,61958.0,61956.0,0.3608]
[1728099491443,0.154487,61958.0,61954.0,0.05649]
[1728099491645,0.154487,61958.0,61952.0,0.02960929]
[1728099491835,0.098,61958.0,61957.0,0.056487]
[1728099492036,0.007,61958.0,61957.0,0.056487]
[1728099492438,0.007,61958.0,61957.0,0.086687]
[1728099493247,0.006,61958.0,61957.0,0.086687]
[1728099493935,0.006,61958.0,61957.0,0.447487]
[1728099494136,0.005,61958.0,61957.0,0.447487]
[1728099494542,0.16521162,61958.0,61957.0,0.447487]
[1728099494735,0.16821162,61958.0,61957.0,0.447487]
[1728099494935,0.25727368,61958.0,61957.0,0.447487]
[1728099496542,0.09706206,61958.0,61957.0,0.447487]
[1728099497340,0.25727368,61958.0,61957.0,0.447487]
[1728099497542,0.09706206,61958.0,61957.0,0.447487]
[1728099500840,0.25727368,61958.0,61957.0,0.479787]
[1728099502537,0.008,61958.0,61957.0,0.511287]
[1728099505347,0.008,61958.0,61957.0,0.150487]
[1728099507044,0.008,61958.0,61957.0,0.511287]
[1728099509542,0.04752268,61958.0,61957.0,0.511287]
[1728099509738,0.09706168,61958.0,61957.0,0.511287]
[1728099514345,0.09706168,61958.0,61957.0,0.481087]
[1728099515953,0.09706168,61958.0,61957.0,0.120287]
[1728099516248,0.09706168,61958.0,61957.0,0.481087]
[1728099517145,0.09706168,61958.0,61957.0,0.120287]
[1728099517345,0.09706168,61958.0,61957.0,0.481087]
[1728099517549,0.008,61958.0,61957.0,0.481087]
[1728099518548,0.008,61958.0,61957.0,0.120287]
[1728099518744,0.008,61958.0,61957.0,0.481087]
[1728099520062,0.008,61958.0,61957.0,0.120287]
[1728099520251,0.008,61958.0,61957.0,0.481087]
[1728099522154,0.008,61958.0,61957.0,0.3608]
[1728099522347,0.064487,61958.0,61957.0,0.3608]
[1728099523259,0.064487,61958.0,61957.0,0.4508]
[1728099524757,0.15355344,61958.0,61957.0,0.4508]
[1728099526758,0.15355343,61958.0,61957.0,0.4508]
[1728099530256,0.15355343,61958.0,61957.0,0.09]
[1728099532669,0.064487,61958.0,61957.0,0.09]
[1728099536160,0.064487,61958.0,61956.0,0.056488]
[1728099537263,0.063487,61958.0,61956.0,0.056488]
[1728099537469,0.062487,61958.0,61956.0,0.056488]
[1728099540065,0.062487,61958.0,61954.0,0.4508]
[1728099540066,0.056488,61957.0,61954.0,0.3618]
[1728099540274,0.056488,61957.0,61954.0,0.3608]
[1728099540465,0.006,61958.0,61954.0,0.3608]
[1728099540765,0.056489,61955.0,61954.0,0.3608]
[1728099541363,0.056489,61955.0,61954.0,0.4508]
[1728099541558,0.006,61958.0,61954.0,0.4508]
[1728099541870,0.03952524,61957.0,61954.0,0.50729]
[1728099542065,0.006,61958.0,61954.0,0.50729]
[1728099542261,0.002,61957.0,61954.0,0.50729]
[1728099543167,0.056487,61958.0,61954.0,0.14649]
[1728099543377,0.058487,61958.0,61954.0,0.50729]
[1728099544074,0.002,61957.0,61954.0,0.14649]
[1728099544269,0.002,61957.0,61954.0,0.50729]
[1728099545471,0.056487,61958.0,61954.0,0.50729]
[1728099545675,0.058487,61958.0,61954.0,0.50729]
[1728099545875,0.058487,61958.0,61954.0,0.4508]
[1728099546176,0.058487,61958.0,61956.0,0.056488]
[1728099546366,0.002,61957.0,61956.0,0.056488]
[1728099546566,0.002,61957.0,61956.0,0.146488]
[1728099547265,0.056487,61958.0,61956.0,0.146488]
[1728099547266,0.058487,61958.0,61956.0,0.146488]
[1728099547471,0.002,61957.0,61956.0,0.146488]
[1728099547667,0.0910672,61957.0,61956.0,0.146488]
[1728099548674,0.0950672,61957.0,61956.0,0.146488]
[1728099548869,0.0930672,61957.0,61956.0,0.146488]
[1728099549672,0.0950672,61957.0,61956.0,0.146488]
[1728099552683,0.04552513,61957.0,61956.0,0.056488]
[1728099552874,0.0950672,61957.0,61956.0,0.056488]
[1728099553680,0.006,61957.0,61956.0,0.056488]
[1728099553868,0.0950672,61957.0,61956.0,0.056488]
[1728099555175,0.006,61957.0,61956.0,0.056488]
[1728099562983,0.0950672,61957.0,61956.0,0.056488]
[1728099567389,0.0950665,61957.0,61956.0,0.056488]
[1728099567984,0.0950665,61957.0,61956.0,0.146488]
[1728099569991,0.006,61957.0,61956.0,0.146488]
[1728099572200,0.006,61957.0,61956.0,0.55557981]
[1728099573690,0.006,61957.0,61956.0,0.55557658]
[1728099576090,0.006,61957.0,61956.0,0.507288]
[1728099578091,0.04552141,61957.0,61956.0,0.507288]
[1728099578492,0.09505882,61957.0,61956.0,0.507288]
[1728099581993,0.09506095,61957.0,61956.0,0.507288]
[1728099585989,0.006,61957.0,61956.0,0.507288]
[1728099589297,0.006,61957.0,61956.0,0.417288]
[1728099589598,0.006,61957.0,61956.0,0.507288]
[1728099597107,0.006,61957.0,61956.0,0.55560115]
[1728099597514,0.006,61957.0,61956.0,0.507288]
[1728099597707,0.006,61957.0,61956.0,0.55560323]
[1728099598005,0.002,61957.0,61956.0,0.55560323]
[1728099598208,0.004,61957.0,61956.0,0.55560323]
[1728099598406,0.002,61957.0,61956.0,0.55660323]
[1728099599507,0.002,61957.0,61956.0,0.46660323]
[1728099599715,0.002,61957.0,61956.0,0.508288]
[1728099601215,0.04152141,61957.0,61956.0,0.508288]
[1728099601615,0.09105881,61957.0,61956.0,0.508288]
[1728099605120,0.09105694,61957.0,61956.0,0.508288]
[1728099607711,0.09105694,61957.0,61956.0,0.869088]
[1728099608226,0.002,61957.0,61956.0,0.869088]
[1728099609105,0.002,61957.0,61956.0,0.508288]
[1728099610819,0.002,61957.0,61956.0,0.418288]
[1728099611015,0.002,61957.0,61956.0,0.508288]
[1728099612213,0.0038,61972.0,61958.0,0.056486]
[1728099612411,0.00242085,61973.0,61971.0,0.4508]
[1728099612614,0.00242085,61973.0,61972.0,0.056474]
[1728099613616,0.01642085,61973.0,61972.0,0.056474]
[1728099614516,0.03042085,61973.0,61972.0,0.056474]
[1728099615321,0.01642085,61973.0,61972.0,0.056474]
[1728099615514,0.03042085,61973.0,61972.0,0.056474]
[1728099615914,0.03042085,61973.0,61972.0,0.0854978]
[1728099616111,0.11945959,61973.0,61972.0,0.0854978]
[1728099618221,0.11703874,61973.0,61972.0,0.0854978]
[1728099620418,0.20920256,61977.0,61972.0,0.0854978]
[1728099620619,0.08903522,61976.0,61975.0,0.056471]
[1728099622116,0.08903522,61976.0,61975.0,0.146471]
[1728099623119,0.026,61977.0,61976.0,0.05647]
[1728099623326,0.012,61977.0,61976.0,0.05647]
[1728099623519,0.27050256,61983.0,61981.0,0.056466]
[1728099623520,0.0613,61983.0,61981.0,0.056466]
[1728099623721,0.0613,61983.0,61982.0,0.09]
[1728099626026,0.0873,61983.0,61982.0,0.092]
[1728099627433,0.0873,61983.0,61982.0,0.12038331]
[1728099632032,0.0873,61983.0,61982.0,0.17684831]
[1728099636634,0.026,61983.0,61982.0,0.17684831]
[1728099638246,0.17289046,61983.0,61982.0,0.15500514]
[1728099644250,0.17289046,61983.0,61982.0,0.13632918]
[1728099645243,0.06550731,61983.0,61982.0,0.13632918]
[1728099649346,0.06550684,61983.0,61982.0,0.13632918]
[1728099653245,0.11502507,61983.0,61982.0,0.13632918]
[1728099655046,0.11502507,61983.0,61982.0,0.17684831]
[1728099656854,0.17288673,61983.0,61982.0,0.17684831]
[1728099660249,0.06550684,61983.0,61982.0,0.17684831]
[1728099662562,0.06550624,61983.0,61982.0,0.17684831]
[1728099667273,0.06550624,61983.0,61982.0,0.66084831]
[1728099668067,0.06550624,61983.0,61982.0,0.17684831]
[1728099668268,0.17288331,61983.0,61982.0,0.17684831]
[1728099669464,0.17288331,61983.0,61982.0,0.08684831]
[1728099669662,0.17288331,61983.0,61982.0,0.17684831]
[1728099673473,0.17288331,61983.0,61982.0,0.08684831]
[1728099673668,0.17288331,61983.0,61982.0,0.17684831]
[1728099675375,0.17288331,61983.0,61982.0,0.53764831]
[1728099675376,0.13337707,61983.0,61982.0,0.53764831]
[1728099675975,0.12336602,61983.0,61982.0,0.53764831]
[1728099676270,0.026,61983.0,61982.0,0.53764831]
[1728099683180,0.06550637,61983.0,61982.0,0.53764831]
[1728099685378,0.026,61983.0,61982.0,0.53764831]
[1728099690690,0.06550647,61983.0,61982.0,0.53764831]
[1728099691285,0.11502515,61983.0,61982.0,0.53764831]
[1728099691986,0.11502515,61983.0,61982.0,0.17684831]
[1728099692193,0.11502515,61983.0,61982.0,0.53764831]
[1728099694287,0.07551868,61983.0,61982.0,0.53764831]
[1728099694498,0.17288641,61983.0,61982.0,0.53764831]
[1728099698690,0.026,61983.0,61982.0,0.53764831]
[1728099699591,0.06550582,61983.0,61982.0,0.44764831]
[1728099699793,0.06550582,61983.0,61982.0,0.53764831]
[1728099700799,0.14906891,61990.0,61989.0,0.056458]
[1728099700800,0.0038,61990.0,61989.0,0.056458]
[1728099701016,0.03950528,61990.0,61989.0,0.507258]
[1728099701409,0.00241994,61996.0,61989.0,0.4508]
[1728099701699,0.03950227,61995.0,61993.0,0.056455]
[1728099701895,0.03950227,61994.0,61993.0,0.056455]
[1728099702093,0.03950227,61994.0,61993.0,0.146455]
[1728099703890,0.03950227,61994.0,61993.0,0.147455]
[1728099704392,0.03950227,61994.0,61993.0,0.148455]
[1728099704998,0.03950227,61994.0,61993.0,0.147455]
[1728099705198,0.03950227,61994.0,61993.0,0.148455]
[1728099705598,0.14687171,61994.0,61993.0,0.13051082]
[1728099710700,0.20332571,61994.0,61993.0,0.092]
[1728099711598,0.20332571,61994.0,61993.0,0.02613979]
[1728099712604,0.16382344,61994.0,61993.0,0.02613979]
[1728099713601,0.10596741,61994.0,61993.0,0.02613979]
[1728099714799,0.04951238,61994.0,61991.0,0.418256]
[1728099715003,0.056456,61992.0,61991.0,0.3608]
[1728099715203,0.10596838,61992.0,61991.0,0.4508]
[1728099716010,0.10596838,61992.0,61991.0,0.4518]
[1728099716512,0.21963158,61992.0,61991.0,0.4528]
[1728099716703,0.27114396,61992.0,61991.0,0.4528]
[1728099717211,0.10996838,61992.0,61991.0,0.4528]
[1728099718910,0.10996838,61992.0,61991.0,0.002]
[1728099719607,0.10997258,61992.0,61991.0,0.002]
[1728099720508,0.28726883,61992.0,61991.0,0.002]
[1728099720715,0.10997258,61992.0,61991.0,0.002]
[1728099721614,0.10997258,61992.0,61991.0,0.092]
[1728099727817,0.16783156,61992.0,61990.0,0.056457]
[1728099728115,0.060456,61992.0,61991.0,0.09]
[1728099728319,0.16782911,61992.0,61991.0,0.09]
[1728099728811,0.16482911,61992.0,61991.0,0.09]
[1728099729011,0.16582911,61992.0,61991.0,0.09]
[1728099729420,0.16582911,61992.0,61991.0,0.091]
[1728099731622,0.16582911,61992.0,61991.0,0.092]
[1728099731623,0.16782911,61992.0,61991.0,0.092]
[1728099733725,0.16782911,61992.0,61991.0,0.002]
[1728099734025,0.16782911,61992.0,61991.0,0.092]
[1728099735722,0.1099711,61992.0,61991.0,0.092]
[1728099740825,0.10997106,61992.0,61991.0,0.092]
[1728099742822,0.16782902,61992.0,61991.0,0.07280821]
[1728099746625,0.16782902,61992.0,61991.0,0.12926421]
[1728099749032,0.16782902,61992.0,61989.0,0.11971413]
[1728099749033,0.056457,61991.0,61989.0,0.11971413]
[1728099749224,0.10737302,61990.0,61989.0,0.09]
[1728099749730,0.16383002,61990.0,61989.0,0.09]
[1728099750128,0.16383002,61990.0,61989.0,0.091]
[1728099750826,0.10597206,61990.0,61989.0,0.091]
[1728099751022,0.11197206,61990.0,61989.0,0.092]
[1728099752732,0.062457,61990.0,61989.0,0.092]
[1728099752941,0.11197273,61990.0,61989.0,0.092]
[1728099756127,0.062457,61990.0,61989.0,0.092]
[1728099757838,0.11197354,61990.0,61989.0,0.092]
[1728099758040,0.16983323,61990.0,61989.0,0.092]
[1728099761044,0.37962173,61990.0,61989.0,0.092]
[1728099761550,0.16983323,61990.0,61989.0,0.092]
[1728099762752,0.12031669,61990.0,61989.0,0.092]
[1728099762958,0.16983198,61990.0,61989.0,0.092]
[1728099763654,0.11197229,61990.0,61989.0,0.092]
[1728099763955,0.05551529,61990.0,61989.0,0.148458]
[1728099765952,0.006,61990.0,61989.0,0.148458]
[1728099774365,0.1673321,61990.0,61989.0,0.148458]
[1728099774555,0.1673321,61990.0,61989.0,0.058458]
[1728099774859,0.2168445,61990.0,61989.0,0.148458]
[1728099777771,0.21684531,61990.0,61989.0,0.148458]
[1728099778066,0.21684566,61990.0,61989.0,0.148458]
[1728099781161,0.1133684,61990.0,61989.0,0.1235134]
[1728099786458,0.11336839,61990.0,61989.0,0.1235134]
[1728099787059,0.11336839,61990.0,61989.0,0.09]
[1728099787460,0.11336839,61990.0,61989.0,0.146458]
[1728099788056,0.006,61990.0,61989.0,0.146458]
[1728099795272,0.006,61990.0,61989.0,0.507258]
[1728099795665,0.006,61990.0,61989.0,0.417258]
[1728099795867,0.006,61990.0,61989.0,0.507258]
[1728099796067,0.05551408,61990.0,61989.0,0.507258]
[1728099797071,0.05551408,61990.0,61989.0,0.146458]
[1728099798565,0.14567089,61990.0,61989.0,0.146458]
[1728099801470,0.14567089,61990.0,61989.0,0.13181221]
[1728099803181,0.08781408,61990.0,61989.0,0.13181221]
[1728099807373,0.0383,61990.0,61989.0,0.13181221]
[1728099808786,0.0383,61990.0,61989.0,0.09]
[1728099809075,0.094757,61990.0,61989.0,0.09]
[1728099811174,0.20212991,61990.0,61989.0,0.09]
[1728099816176,0.20213006,61990.0,61989.0,0.09]
[1728099817182,0.20213006,61990.0,61987.0,0.0289952]
[1728099817488,0.094757,61990.0,61989.0,0.09]
[1728099817786,0.16983022,61990.0,61989.0,0.09]
[1728099818182,0.11197215,61990.0,61989.0,0.09]
[1728099818582,0.11197215,61990.0,61989.0,0.146458]
[1728099819380,0.11297215,61990.0,61989.0,0.146458]
[1728099820086,0.11297215,61990.0,61989.0,0.147458]
[1728099826081,0.1129722,61990.0,61989.0,0.147458]
[1728099826278,0.17083032,61990.0,61989.0,0.13271221]
[1728099831091,0.17083018,61990.0,61989.0,0.13271221]
[1728099832307,0.17083018,61990.0,61989.0,0.057458]
[1728099832892,0.17083018,61990.0,61989.0,0.147458]
[1728099833192,0.11297206,61990.0,61989.0,0.147458]
[1728099835989,0.063457,61990.0,61989.0,0.147458]
[1728099836299,0.11297206,61990.0,61989.0,0.147458]
[1728099840593,0.063457,61990.0,61989.0,0.147458]
[1728099840797,0.11297207,61990.0,61989.0,0.147458]
[1728099843203,0.11297207,61990.0,61989.0,0.091]
[1728099844500,0.11297163,61990.0,61989.0,0.091]
[1728099848306,0.17082907,61990.0,61989.0,0.091]
[1728099848903,0.11437207,61990.0,61989.0,0.091]
[1728099849098,0.11437207,61990.0,61989.0,0.147458]
[1728099849499,0.11437056,61990.0,61989.0,0.147458]
[1728099849797,0.11437056,61990.0,61989.0,0.180258]
[1728099856515,0.007,61990.0,61989.0,0.180258]
[1728099858604,0.007,61990.0,61989.0,0.147458]
[1728099859218,0.05651533,61990.0,61989.0,0.147458]
[1728099861115,0.0565155,61990.0,61989.0,0.147458]
[1728099862718,0.007,61990.0,61989.0,0.147458]
[1728099871625,0.05651366,61990.0,61989.0,0.147458]
[1728099872127,0.11436999,61990.0,61989.0,0.147458]
[1728099874627,0.11436995,61990.0,61989.0,0.147458]
[1728099878333,0.007,61990.0,61989.0,0.147458]
[1728099881527,0.007,61990.0,61989.0,0.508258]
[1728099882433,0.063457,61990.0,61989.0,0.4518]
[1728099882635,0.11297091,61990.0,61989.0,0.4518]
[1728099882836,0.14427091,61990.0,61989.0,0.4518]
[1728099884233,0.14427091,61990.0,61989.0,0.001]
[1728099886434,0.20213113,61990.0,61989.0,0.00090001]
[1728099892547,0.056459,61988.0,61985.0,0.0113]
[1728099892749,0.10737413,61987.0,61984.0,0.09]
[1728099892943,0.10737413,61986.0,61984.0,0.09]
[1728099893136,0.10737413,61985.0,61984.0,0.09]
[1728099893538,0.056459,61988.0,61984.0,0.09]
[1728099893841,0.05646,61987.0,61984.0,0.11898431]
[1728099894040,0.056461,61986.0,61985.0,0.001]
[1728099894741,0.056461,61986.0,61984.0,0.11998431]
[1728099895136,0.056461,61986.0,61985.0,0.001]
[1728099895846,0.060461,61986.0,61985.0,0.001]
[1728099896344,0.066461,61986.0,61985.0,0.002]
[1728099900546,0.17384273,61986.0,61985.0,0.00180001]
[1728099900852,0.65784273,61986.0,61985.0,0.00180001]
[1728099902846,0.65784747,61986.0,61985.0,0.00180001]
[1728099903053,0.17384747,61986.0,61985.0,0.00180001]
[1728099903443,0.26384747,61986.0,61985.0,0.00180001]
[1728099905759,0.17384747,61986.0,61985.0,0.00180001]
[1728099906057,0.26384747,61986.0,61985.0,0.00180001]
[1728099906247,0.62464747,61986.0,61985.0,0.00180001]
[1728099906648,0.056462,61985.0,61984.0,0.02619589]
[1728099906844,0.056464,61983.0,61982.0,0.0113]
[1728099907053,0.056465,61982.0,61979.0,0.0113]
[1728099907248,0.10738647,61981.0,61978.0,0.146468]
[1728099907448,0.10738647,61980.0,61979.0,0.056467]
[1728099908156,0.19738647,61980.0,61978.0,0.0296051]
[1728099908357,0.056469,61977.0,61976.0,0.01371997]
[1728099908550,0.056469,61977.0,61976.0,0.00241997]
[1728099909149,0.146469,61977.0,61976.0,0.00241997]
[1728099909552,0.146469,61977.0,61976.0,0.03169374]
[1728099909863,0.146469,61977.0,61976.0,0.00241997]
[1728099911357,0.151469,61977.0,61976.0,0.00241997]
[1728099911960,0.157469,61977.0,61976.0,0.00341997]
[1728099912161,0.157469,61977.0,61976.0,0.03280665]
[1728099915462,0.20699713,61977.0,61976.0,0.03280665]
[1728099917462,0.157469,61977.0,61976.0,0.03280665]
[1728099917663,0.20699717,61977.0,61976.0,0.03280665]
[1728099921265,0.11699699,61977.0,61976.0,0.03280665]
[1728099921564,0.20699699,61977.0,61976.0,0.03280665]
[1728099923675,0.157469,61977.0,61976.0,0.03280665]
[1728099938775,0.20699708,61977.0,61976.0,0.08927665]
[1728099938980,0.20699708,61977.0,61976.0,0.08685668]
[1728099942578,0.20699712,61977.0,61976.0,0.08685668]
[1728099945684,0.157469,61977.0,61976.0,0.08685668]
[1728099952403,0.067469,61977.0,61976.0,0.08685668]
[1728099952597,0.011,61977.0,61976.0,0.08685668]
[1728099960981,0.06052575,61977.0,61976.0,0.08685668]
[1728099963292,0.15052575,61977.0,61976.0,0.08685668]
[1728099968793,0.101,61977.0,61976.0,0.08685668]
[1728099969591,0.157469,61977.0,61976.0,0.08685668]
[1728099969794,0.157469,61977.0,61976.0,0.03038668]
[1728099970295,0.157469,61977.0,61972.0,0.0113]
[1728099970296,0.056473,61973.0,61972.0,0.0113]
[1728099970599,0.056474,61972.0,61971.0,0.02308662]
[1728099970806,0.056474,61972.0,61968.0,0.067777]
[1728099970807,0.146474,61972.0,61968.0,0.067777]
[1728099970997,0.09,61969.0,61968.0,0.067777]
[1728099971193,0.09,61969.0,61968.0,0.056477]
[1728099972095,0.09,61969.0,61968.0,0.060477]
[1728099973295,0.09,61969.0,61968.0,0.08336972]
[1728099975702,0.04953422,61969.0,61968.0,0.08336972]
[1728099975896,0.13953422,61969.0,61968.0,0.08336972]
[1728099976404,0.04953422,61969.0,61968.0,0.08336972]
[1728099978205,0.10601122,61969.0,61968.0,0.08336972]
[1728099979809,0.10601122,61969.0,61968.0,0.02689272]
[1728099980294,0.1060119,61969.0,61968.0,0.02689272]
[1728099981803,0.056477,61969.0,61968.0,0.02689272]
[1728099982003,0.10601166,61969.0,61968.0,0.02689272]
[1728099984502,0.056477,61969.0,61968.0,0.02689272]
[1728099987915,0.056477,61969.0,61968.0,0.004]
[1728099989308,0.417277,61969.0,61968.0,0.004]
[1728099991704,0.46681537,61969.0,61968.0,0.004]
[1728099993320,0.64405682,61969.0,61968.0,0.004]
[1728099995324,0.70194201,61969.0,61968.0,0.004]
[1728099995622,0.34114201,61969.0,61968.0,0.004]
[1728099995822,0.64405682,61969.0,61968.0,0.004]
[1728099996012,0.64405682,61969.0,61964.0,0.0113]
[1728099996013,0.05648,61965.0,61964.0,0.0113]
[1728099996214,0.05648,61965.0,61963.0,0.00242084]
[1728099996215,0.056481,61964.0,61963.0,0.00242084]
[1728099996419,0.10601937,61964.0,61963.0,0.00242084]
[1728099997718,0.10601937,61964.0,61963.0,0.01142084]
[1728099998420,0.10601947,61964.0,61963.0,0.01142084]
[1728099998620,0.056481,61964.0,61963.0,0.05967777]
[1728099998922,0.056481,61964.0,61963.0,0.08269642]
[1728100000113,0.056481,61964.0,61963.0,0.03843949]
[1728100006824,0.10601984,61964.0,61963.0,0.03843949]
[1728100008326,0.15555887,61964.0,61963.0,0.03843949]
[1728100008520,0.10602003,61964.0,61963.0,0.03843949]
[1728100012029,0.10602027,61964.0,61963.0,0.03843949]
[1728100012847,0.10602027,61964.0,61963.0,0.01542084]
[1728100013349,0.10602243,61964.0,61963.0,0.01542084]
[1728100013545,0.056481,61964.0,61963.0,0.01542084]
[1728100014348,0.417281,61964.0,61963.0,0.01542084]
[1728100017943,0.417281,61964.0,61960.0,0.0113]
[1728100018246,0.056487,61958.0,61957.0,0.0038]
[1728100018446,0.056491,61953.0,61950.0,0.05194368]
[1728100018647,0.09,61951.0,61949.0,0.056495]
[1728100018849,0.09,61951.0,61948.0,0.09584258]
[1728100019054,0.056495,61949.0,61948.0,0.0315]
[1728100019946,0.046495,61949.0,61948.0,0.0315]
[1728100020150,0.046495,61949.0,61948.0,0.0455]
[1728100020356,0.047495,61949.0,61948.0,0.0555]
[1728100020548,0.047495,61949.0,61948.0,0.07819552]
[1728100021551,0.047495,61949.0,61948.0,0.12633134]
[1728100021747,0.047495,61949.0,61948.0,0.06419552]
[1728100021950,0.048495,61949.0,61948.0,0.07619552]
[1728100022552,0.047495,61949.0,61948.0,0.07119552]
[1728100022760,0.048495,61949.0,61948.0,0.07119552]
[1728100028849,0.138495,61949.0,61948.0,0.07119552]
[1728100034864,0.1880452,61949.0,61948.0,0.07119552]
[1728100035159,0.18804535,61949.0,61948.0,0.07119552]
[1728100035359,0.09804535,61949.0,61948.0,0.07119552]
[1728100035663,0.138495,61949.0,61948.0,0.07119552]
[1728100043266,0.138495,61949.0,61948.0,0.03969552]
[1728100043560,0.138495,61949.0,61948.0,0.08783134]
[1728100043761,0.138495,61949.0,61948.0,0.03969552]
[1728100046171,0.18804533,61949.0,61948.0,0.03969552]
[1728100051669,0.138495,61949.0,61948.0,0.1040381]
[1728100053071,0.138495,61949.0,61948.0,0.03969552]
[1728100053258,0.138495,61949.0,61948.0,0.017]
[1728100053462,0.138495,61949.0,61948.0,0.06518148]
[1728100053874,0.138495,61949.0,61948.0,0.017]
[1728100055359,0.137495,61949.0,61948.0,0.014]
[1728100055964,0.136495,61949.0,61948.0,0.004]
[1728100056261,0.137495,61949.0,61948.0,0.004]
[1728100056668,0.056497,61946.0,61945.0,0.05568148]
[1728100056871,0.146497,61946.0,61945.0,0.04818148]
[1728100057165,0.146497,61946.0,61944.0,0.02338715]
[1728100057166,0.056498,61945.0,61944.0,0.07156863]
[1728100057364,0.056498,61945.0,61944.0,0.04818148]
[1728100058871,0.0565,61943.0,61942.0,0.0075]
[1728100059069,0.0565,61943.0,61939.0,0.0075]
[1728100059070,0.056503,61940.0,61939.0,0.0075]
[1728100059274,0.19605795,61940.0,61938.0,0.3608]